bitfinex/quotes_ETHUSD_20260213
["timestamp","ask_amount","ask_price","bid_price","bid_amount"]
[1770950433379,2.08052821,1945.8,1945.4,3.22603722]
[1770950433592,0.97132112,1945.6,1945.4,0.001]
[1770950434389,2.08052821,1945.6,1945.4,0.001]
[1770950436057,1.10920709,1945.6,1945.4,0.001]
[1770950436397,1.729,1945.9,1945.4,0.001]
[1770950436700,1.10920709,1945.8,1945.5,0.99817932]
[1770950437053,1.732,1946.0,1945.4,0.001]
[1770950437054,1.10920709,1945.7,1945.4,0.001]
[1770950437255,2.08052821,1945.9,1945.4,0.001]
[1770950437479,1.10920709,1945.9,1945.4,0.001]
[1770950438093,3.36530143,1945.9,1945.5,0.001]
[1770950439190,2.08052821,1945.8,1945.5,0.001]
[1770950440196,2.08052821,1945.7,1945.4,0.001]
[1770950440494,0.97132112,1945.6,1945.4,0.001]
[1770950440696,0.97132112,1945.5,1945.0,3.22434451]
[1770950440903,2.08052821,1945.5,1944.9,2.28354174]
[1770950441203,1.10920709,1945.4,1944.9,2.28354174]
[1770950441489,1.10571176,1945.4,1944.9,1.28536242]
[1770950441664,1.10571176,1945.3,1944.9,1.28536242]
[1770950441864,1.10571176,1945.3,1944.9,2.28354174]
[1770950442087,1.10434276,1945.3,1944.9,2.28354174]
[1770950442681,1.10434276,1945.3,1945.0,0.99817932]
[1770950444168,1.28480386,1945.9,1945.2,0.99817932]
[1770950444377,1.10614594,1945.8,1945.2,0.99817932]
[1770950444576,1.737,1945.8,1945.2,0.99817932]
[1770950446271,1.737,1945.8,1945.3,2.28332814]
[1770950446603,1.737,1945.8,1945.4,0.99817932]
[1770950446905,0.00063111,1946.1,1945.4,0.99817932]
[1770950448489,0.00063111,1946.1,1945.5,2.28319602]
[1770950448667,0.97195223,1946.1,1945.5,1.2850167]
[1770950449599,0.97132112,1945.9,1945.2,2.28334526]
[1770950449896,0.97132112,1945.9,1945.5,0.001]
[1770950450499,2.2561104,1945.9,1945.5,0.001]
[1770950450702,6.85740566,1945.8,1945.4,0.001]
[1770950450891,0.97132112,1945.7,1945.4,0.001]
[1770950451807,0.97132112,1945.7,1945.0,3.22530118]
[1770950452376,0.97132112,1945.7,1945.0,3.22534527]
[1770950452578,0.97132112,1945.5,1945.0,3.22534527]
[1770950453387,0.97132112,1945.5,1945.0,1.94]
[1770950454309,0.97132112,1945.5,1944.8,2.28360467]
[1770950454611,1.28508275,1945.4,1944.8,2.28360467]
[1770950454983,2.25640387,1945.4,1944.8,2.28360467]
[1770950455209,2.25640387,1945.4,1944.8,0.99817932]
[1770950455504,0.97132112,1945.3,1944.7,1.28548221]
[1770950455704,0.97132112,1945.3,1944.6,0.001]
[1770950455907,0.97132112,1945.3,1944.6,1.28660979]
[1770950456107,0.97132112,1945.3,1944.6,0.001]
[1770950456809,0.97132112,1945.1,1944.6,0.001]
[1770950459011,0.97132112,1944.9,1944.6,0.001]
[1770950459188,0.95441143,1944.9,1944.6,0.001]
[1770950459708,0.927,1945.3,1944.6,0.99917932]
[1770950460709,0.927,1945.3,1944.7,0.94480364]
[1770950460904,3.93118056,1945.7,1944.7,0.94480364]
[1770950461113,1.10674926,1945.6,1944.9,0.94480364]
[1770950461409,9.67102818,1946.0,1944.9,0.94480364]
[1770950461410,3.9310077,1945.9,1944.9,0.94480364]
[1770950461614,1.10698923,1945.8,1944.9,0.94480364]
[1770950461910,3.9310077,1945.9,1944.9,0.94480364]
[1770950462084,1.10698835,1945.8,1944.9,0.94480364]
[1770950462281,0.002,1946.0,1944.9,0.94480364]
[1770950462612,0.002,1945.6,1944.9,0.94480364]
[1770950463081,0.002,1945.6,1945.0,1.28534704]
[1770950463287,0.90725514,1944.4,1943.9,4.60975196]
[1770950463504,0.90725514,1944.2,1943.1,0.94680364]
[1770950463784,2.49294066,1944.1,1943.8,0.001]
[1770950463999,1.10796104,1944.0,1943.8,0.001]
[1770950464408,2.29223476,1944.2,1943.8,0.001]
[1770950464623,1.10584123,1944.1,1943.8,0.001]
[1770950464923,1.38497962,1944.4,1943.8,0.003]
[1770950465219,1.10592739,1944.3,1943.8,0.003]
[1770950465417,1.10592739,1944.2,1943.8,0.003]
[1770950465714,1.38497962,1944.4,1943.8,0.003]
[1770950466014,1.10476117,1944.3,1943.8,0.003]
[1770950466216,1.10476117,1944.2,1943.8,0.003]
[1770950466510,1.28575468,1944.4,1943.8,0.001]
[1770950466704,1.1037864,1944.3,1943.9,0.002]
[1770950466908,1.1037864,1944.2,1943.9,0.002]
[1770950467116,1.28575468,1944.4,1943.9,0.002]
[1770950467322,1.1029651,1944.3,1943.9,0.002]
[1770950467624,3.57795511,1944.5,1943.9,0.002]
[1770950467922,1.10295919,1944.4,1943.9,0.002]
[1770950468087,1.10295919,1944.3,1943.9,0.002]
[1770950468290,3.57795511,1944.5,1943.9,0.002]
[1770950468491,1.10224359,1944.4,1943.9,0.002]
[1770950468716,2.19294041,1944.5,1943.9,0.002]
[1770950468909,1.10227984,1944.4,1943.9,0.002]
[1770950469918,0.90725514,1944.3,1943.9,0.002]
[1770950470696,1.28568345,1944.5,1943.9,0.002]
[1770950470899,1.10144883,1944.4,1943.9,0.002]
[1770950471110,3.93087158,1944.6,1943.8,0.001]
[1770950471316,2.00853962,1944.5,1943.9,0.002]
[1770950471625,1.10128448,1944.4,1943.9,0.002]
[1770950471922,0.90725514,1944.5,1943.9,0.002]
[1770950472123,1.10117752,1944.4,1943.9,0.002]
[1770950472323,0.90725514,1944.5,1943.9,0.002]
[1770950472628,1.10097056,1944.4,1943.9,0.002]
[1770950472925,0.90725514,1944.5,1943.9,0.002]
[1770950473224,2.00822786,1944.4,1943.9,0.002]
[1770950473394,1.2858098,1944.3,1943.9,0.002]
[1770950473999,2.19304832,1944.4,1943.9,0.002]
[1770950474204,5.31589524,1944.6,1943.9,0.002]
[1770950474404,1.10061346,1944.5,1943.9,0.002]
[1770950474600,1.10061346,1944.4,1943.9,0.002]
[1770950475201,1.738,1944.6,1943.9,0.94680364]
[1770950475413,1.738,1944.6,1944.0,1.28600823]
[1770950475727,2.64525514,1944.6,1944.0,1.28600823]
[1770950476711,3.93086921,1944.6,1943.9,1.28803669]
[1770950477305,3.93086921,1944.6,1943.9,0.002]
[1770950477618,3.93086921,1944.6,1943.8,5.14549376]
[1770950477929,3.93086921,1944.6,1943.9,0.002]
[1770950478348,1.10162132,1944.5,1943.9,0.002]
[1770950478630,3.93088255,1944.6,1943.9,0.002]
[1770950478830,1.10162139,1944.5,1943.9,0.002]
[1770950479026,3.93088255,1944.6,1943.8,5.14549376]
[1770950479227,2.00899571,1944.5,1943.9,0.002]
[1770950479431,2.19297998,1944.5,1943.9,0.002]
[1770950480132,0.90725514,1944.5,1943.9,0.002]
[1770950480713,3.02366986,1944.6,1943.9,0.94680364]
[1770950480916,1.1027221,1944.5,1943.9,0.94680364]
[1770950481112,2.64525514,1944.6,1943.9,0.002]
[1770950481317,1.10285036,1944.5,1943.9,0.002]
[1770950481518,2.64525514,1944.6,1943.9,0.002]
[1770950481718,1.10312155,1944.5,1943.9,0.002]
[1770950482018,2.64525514,1944.6,1943.9,0.002]
[1770950482214,1.10325959,1944.5,1943.9,0.002]
[1770950482419,1.10325959,1944.4,1943.9,0.002]
[1770950482635,2.64525514,1944.6,1943.9,0.002]
[1770950482844,1.10359469,1944.5,1943.9,0.002]
[1770950483004,1.10359469,1944.4,1943.9,0.002]
[1770950483207,4.03023476,1944.6,1943.9,0.002]
[1770950483437,1.10399273,1944.5,1943.9,0.002]
[1770950483619,1.10399273,1944.4,1943.9,0.002]
[1770950483817,2.64525514,1944.6,1943.9,0.002]
[1770950484029,1.10399266,1944.5,1943.9,0.002]
[1770950484339,1.10399266,1944.4,1943.9,0.002]
[1770950484528,4.03023476,1944.6,1943.9,0.002]
[1770950484840,1.10444247,1944.5,1943.9,0.002]
[1770950485035,1.10444247,1944.4,1943.9,0.002]
[1770950485242,1.38497962,1944.6,1943.9,0.94680364]
[1770950485440,1.10483824,1944.5,1943.9,0.94480364]
[1770950485736,3.12497962,1944.7,1944.0,2.23281187]
[1770950486044,1.10483871,1944.6,1944.0,2.23281187]
[1770950486222,1.10483871,1944.5,1944.0,2.23281187]
[1770950486423,3.12497962,1944.7,1944.0,2.23281187]
[1770950486613,1.10519543,1944.6,1944.0,2.23281187]
[1770950486812,3.12497962,1944.7,1944.0,2.23281187]
[1770950486813,1.10519543,1944.5,1944.0,2.23281187]
[1770950487039,3.12497962,1944.7,1944.0,2.23281187]
[1770950487240,1.10532921,1944.6,1944.0,2.23281187]
[1770950487430,1.10532921,1944.5,1944.0,2.23281187]
[1770950487634,3.12497962,1944.7,1944.0,2.23281187]
[1770950487833,1.1054813,1944.6,1944.0,2.23281187]
[1770950488039,1.1054813,1944.5,1944.0,2.23281187]
[1770950488351,1.10579391,1944.4,1944.0,2.23281187]
[1770950488520,3.12497962,1944.7,1944.0,2.23281187]
[1770950488715,1.10578605,1944.6,1944.0,2.23281187]
[1770950488917,1.10578605,1944.5,1944.1,0.94480364]
[1770950489113,0.002,1944.5,1944.1,0.94480364]
[1770950489937,0.002,1944.5,1944.2,1.28587593]
[1770950491337,0.002,1944.5,1944.3,0.002]
[1770950491538,0.002,1944.5,1944.2,0.002]
[1770950492021,0.002,1944.5,1944.0,5.14391158]
[1770950492222,1.10794086,1944.4,1944.0,5.14391158]
[1770950492543,0.002,1944.5,1944.0,5.14391158]
[1770950492847,2.49292106,1944.4,1944.0,0.002]
[1770950493051,1.10794144,1944.3,1944.0,0.002]
[1770950493231,1.10794144,1944.2,1944.0,0.002]
[1770950493428,1.10794144,1944.1,1944.0,0.002]
[1770950494453,1.10794144,1944.1,1943.8,1.28713533]
[1770950494628,1.10794144,1944.0,1943.8,1.28713533]
[1770950494834,1.38497962,1944.2,1943.8,1.28713533]
[1770950495029,1.11081052,1944.1,1943.8,1.28713533]
[1770950495234,1.11081052,1944.0,1943.8,1.2871253]
[1770950495548,1.11081052,1943.9,1943.8,1.2871253]
[1770950495748,1.38497962,1944.2,1943.8,1.2871253]
[1770950495939,1.1108912,1944.1,1943.8,1.2871253]
[1770950496257,1.1108912,1944.0,1943.8,0.001]
[1770950496426,1.38497962,1944.2,1943.8,0.001]
[1770950496631,2.01190493,1944.1,1943.8,0.001]
[1770950496835,1.11104436,1944.0,1943.5,5.14531224]
[1770950497042,1.11104436,1943.9,1943.5,5.14531224]
[1770950497243,1.38497962,1944.1,1943.5,6.1045215]
[1770950497459,1.11110934,1944.0,1943.6,0.95920926]
[1770950497756,1.38497962,1944.2,1943.6,0.95920926]
[1770950498057,1.11104748,1944.1,1943.6,0.95920926]
[1770950498253,1.11104748,1944.0,1943.7,2.24541597]
[1770950498435,1.38497962,1944.2,1943.7,2.24541597]
[1770950498756,1.11112611,1944.1,1943.7,2.24541597]
[1770950498953,1.11112611,1944.0,1943.7,2.24541597]
[1770950499140,1.38497962,1944.3,1943.7,2.24541597]
[1770950499453,1.11118209,1944.2,1943.7,2.24541597]
[1770950499655,1.11118209,1944.1,1943.7,2.24541597]
[1770950499853,1.11118209,1944.0,1943.7,2.24541597]
[1770950500032,1.38497962,1944.2,1943.7,2.24541597]
[1770950500227,1.11133461,1944.1,1943.7,2.24541597]
[1770950500432,1.11133461,1944.0,1943.8,0.95920926]
[1770950500755,1.38497962,1944.3,1943.8,0.95920926]
[1770950500957,1.11133373,1944.2,1943.8,0.95920926]
[1770950501159,1.38497962,1944.3,1943.8,0.95920926]
[1770950502663,1.38497962,1944.3,1943.9,1.28607438]
[1770950502961,0.002,1944.1,1943.9,1.28607438]
[1770950505469,1.38497962,1944.3,1943.9,2.24528364]
[1770950505760,1.38697962,1944.5,1944.0,0.95920926]
[1770950506466,2.28784019,1944.5,1943.9,1.28607438]
[1770950506663,2.28784019,1944.5,1943.9,2.24528364]
[1770950506862,1.38697962,1944.5,1943.9,2.24528364]
[1770950507649,2.28784019,1944.5,1943.9,2.24528364]
[1770950508866,1.38697962,1944.5,1943.9,1.28607438]
[1770950509171,0.90086057,1944.4,1943.9,1.28607438]
[1770950510568,1.38697962,1944.5,1944.0,0.95920926]
[1770950510875,0.002,1944.5,1944.0,0.95920926]
[1770950511293,0.002,1944.5,1944.2,7.82981476]
[1770950511444,0.002,1944.5,1944.2,2.89020926]
[1770950512045,0.002,1944.5,1944.3,0.95920926]
[1770950513386,0.002,1944.5,1944.4,1.28574367]
[1770950513885,1.38497962,1945.2,1944.5,0.95920926]
[1770950514065,1.11014754,1945.1,1944.5,2.89320926]
[1770950514247,1.11014754,1945.0,1944.5,0.95920926]
[1770950514443,0.90086057,1945.1,1944.6,1.934]
[1770950514647,1.10947449,1945.0,1944.6,1.934]
[1770950514844,2.28584019,1945.3,1944.6,1.934]
[1770950515049,1.10943266,1945.2,1944.6,1.934]
[1770950515250,1.10943266,1945.1,1944.7,1.28554532]
[1770950515451,0.90086057,1945.2,1944.7,1.28554532]
[1770950515650,1.10885918,1945.1,1944.7,1.28554532]
[1770950515913,1.10885918,1945.0,1944.7,1.28554532]
[1770950516174,3.13166353,1945.4,1944.7,1.28554532]
[1770950516175,2.28584019,1945.4,1944.7,1.28554532]
[1770950516349,1.10833794,1945.3,1944.7,1.28554532]
[1770950516549,1.10833794,1945.2,1944.7,1.28554532]
[1770950516770,0.90086057,1945.4,1944.7,1.28554532]
[1770950516972,2.00911049,1945.3,1944.7,1.28554532]
[1770950517186,1.10824992,1945.2,1944.7,1.28554532]
[1770950517681,1.10824992,1945.2,1944.8,0.95920926]
[1770950517880,0.90086057,1945.5,1944.8,0.95920926]
[1770950518081,1.10764181,1945.4,1944.8,0.95920926]
[1770950518283,0.90086057,1945.5,1944.8,0.95920926]
[1770950518487,0.002,1945.3,1944.8,0.95920926]
[1770950519668,0.002,1945.3,1945.0,0.95920926]
[1770950520388,0.002,1945.3,1945.0,1.935]
[1770950520583,0.002,1945.3,1945.0,2.88167999]
[1770950521374,0.002,1945.3,1945.0,1.935]
[1770950521573,0.002,1945.3,1945.1,1.28528096]
[1770950521969,0.002,1945.3,1945.0,3.22029944]
[1770950524773,0.91441825,1945.3,1945.0,1.935]
[1770950526697,0.91441825,1945.3,1944.9,1.28541245]
[1770950526891,0.91441825,1945.3,1944.8,1.28543006]
[1770950529093,0.002,1945.3,1944.8,1.28543006]
[1770950529270,0.002,1945.3,1944.7,3.22349369]
[1770950529271,0.91441825,1945.3,1944.7,3.22349369]
[1770950530203,0.91441825,1945.3,1944.7,4.17017368]
[1770950530411,0.002,1945.2,1944.7,4.17017368]
[1770950531373,0.002,1945.2,1944.8,0.94667999]
[1770950532396,0.002,1945.2,1945.0,0.94667999]
[1770950535016,0.002,1945.2,1944.8,2.23215921]
[1770950535420,0.002,1945.2,1944.8,1.28547922]
[1770950536821,0.91441825,1945.2,1944.8,1.28547922]
[1770950537513,0.002,1945.2,1944.8,1.28547922]
[1770950542916,0.002,1945.2,1944.8,2.23215921]
[1770950543431,0.002,1945.2,1944.9,0.94667999]
[1770950543820,0.002,1945.2,1945.0,3.23534704]
[1770950545610,0.002,1945.6,1945.1,0.94667999]
[1770950545810,0.002,1945.6,1945.2,1.28521488]
[1770950551388,0.95393403,1945.6,1945.2,1.28521488]
[1770950552904,0.95393403,1945.6,1945.1,5.14085955]
[1770950555230,0.002,1945.5,1945.1,5.14085955]
[1770950560129,0.95445295,1945.8,1945.1,12.98151494]
[1770950560327,0.95445295,1945.9,1945.2,0.97788256]
[1770950560530,3.15096019,1946.0,1945.5,1.2850167]
[1770950560531,0.95645295,1946.0,1945.5,1.2850167]
[1770950560905,0.002,1946.0,1945.6,1.973]
[1770950561621,0.002,1946.2,1945.9,6.86277283]
[1770950561798,0.002,1946.4,1946.0,2.95188256]
[1770950562228,0.002,1946.4,1946.0,1.974]
[1770950562629,0.002,1946.4,1946.1,1.28462052]
[1770950564703,0.95445295,1946.7,1946.1,8.14739335]
[1770950564906,0.002,1946.8,1946.2,0.97788256]
[1770950565114,0.002,1946.8,1946.3,1.978]
[1770950566214,0.002,1946.8,1946.3,8.84077283]
[1770950566421,0.002,1946.8,1946.3,9.81865539]
[1770950567118,0.95645295,1946.8,1946.4,1.28442252]
[1770950567441,0.002,1946.6,1946.4,1.28442252]
[1770950568412,0.95645295,1946.6,1946.3,1.978]
[1770950568641,0.95645295,1946.6,1946.3,3.26248105]
[1770950569916,0.002,1946.6,1946.3,3.26248105]
[1770950573341,0.91077844,1946.6,1946.3,3.26248105]
[1770950573506,0.002,1946.6,1946.3,3.26248105]
[1770950573710,0.002,1946.6,1946.3,4.1828415]
[1770950574640,0.002,1946.6,1946.3,3.26248105]
[1770950576916,0.002,1946.6,1946.3,1.978]
[1770950576917,0.91077844,1946.6,1946.3,1.978]
[1770950577319,0.91077844,1946.6,1946.3,3.26248347]
[1770950578244,0.002,1946.6,1946.3,3.26248347]
[1770950580212,0.002,1946.6,1946.4,0.001]
[1770950580414,0.002,1946.5,1946.4,0.001]
[1770950580635,0.98191465,1946.5,1946.4,0.001]
[1770950581038,0.98191465,1946.5,1946.2,1.992]
[1770950581918,0.98191465,1946.5,1945.9,1.992]
[1770950582228,0.98191465,1946.5,1946.0,1.28468653]
[1770950583020,0.98191465,1946.5,1946.0,1.28076653]
[1770950583451,0.002,1946.5,1946.0,1.28076653]
[1770950583729,0.98191465,1946.7,1946.0,1.28076653]
[1770950583730,0.002,1946.7,1946.0,1.28076653]
[1770950584052,0.002,1946.9,1946.1,0.99164091]
[1770950584220,0.002,1946.9,1946.2,4.26819542]
[1770950585028,0.98191465,1946.9,1946.2,4.26819542]
[1770950585953,0.002,1946.9,1946.3,0.99164091]
[1770950586151,0.002,1946.9,1946.4,1.28442252]
[1770950586330,0.002,1946.9,1946.5,1.993]
[1770950586855,0.002,1946.9,1946.6,0.99164091]
[1770950587070,0.002,1947.2,1946.6,0.99164091]
[1770950588348,0.002,1947.2,1946.8,0.99164091]
[1770950588548,0.002,1947.2,1946.9,1.993]
[1770950589254,0.002,1947.2,1946.8,1.993]
[1770950589255,0.98191465,1947.2,1946.8,1.993]
[1770950590352,0.98191465,1947.2,1946.9,1.28409266]
[1770950590742,0.98191465,1947.2,1946.8,3.27711559]
[1770950591858,0.002,1947.2,1946.8,3.27711559]
[1770950592160,0.002,1947.2,1946.8,4.2687565]
[1770950593057,0.002,1947.1,1946.8,4.2687565]
[1770950593850,0.002,1947.1,1946.8,3.27711559]
[1770950595860,0.002,1947.1,1946.8,4.2687565]
[1770950596062,0.98191465,1947.5,1946.8,4.2687565]
[1770950596232,0.98191465,1947.5,1946.9,6.85136081]
[1770950596432,0.002,1947.5,1946.9,7.84300172]
[1770950597246,0.002,1947.5,1947.1,6.85136081]
[1770950597455,0.002,1947.5,1947.2,2.012]
[1770950599065,0.002,1947.7,1947.3,6.85136081]
[1770950599368,0.002,1947.7,1947.4,1.28376296]
[1770950599544,0.002,1947.7,1947.5,2.014]
[1770950600550,0.98191465,1947.9,1947.5,2.014]
[1770950601365,0.98191465,1947.9,1947.2,5.13536483]
[1770950601674,0.98191465,1947.9,1947.3,3.30177266]
[1770950601675,0.97991465,1947.8,1947.3,3.30177266]
[1770950603783,0.002,1947.9,1947.5,6.85136081]
[1770950604085,0.002,1947.9,1947.6,2.018]
[1770950604574,0.97991465,1948.4,1947.7,6.85136081]
[1770950604968,0.97991465,1948.4,1947.6,3.93564091]
[1770950605369,0.002,1947.7,1947.6,3.93564091]
[1770950605674,0.97991465,1948.4,1947.7,1.28356523]
[1770950605858,0.002,1947.8,1947.7,1.28356523]
[1770950606062,0.97991465,1948.4,1947.7,1.28356523]
[1770950606450,6.51557578,1949.1,1947.7,1.28356523]
[1770950606451,0.97991465,1949.1,1947.9,0.99164091]
[1770950606692,0.97991465,1949.0,1948.1,0.99164091]
[1770950606982,0.97991465,1949.0,1948.0,2.019]
[1770950607478,0.97991465,1949.4,1948.1,1.17849715]
[1770950607684,0.97991465,1949.4,1948.3,1.17849715]
[1770950607858,0.97991465,1949.8,1948.5,1.17849715]
[1770950609277,0.97991465,1950.1,1948.9,1.17849715]
[1770950609453,0.97991465,1950.1,1949.0,2.03]
[1770950609654,0.97991465,1949.9,1949.1,1.28264327]
[1770950610268,0.97991465,1949.9,1949.0,1.28266882]
[1770950610458,0.97991465,1949.9,1949.0,3.31266882]
[1770950611594,0.97991465,1949.9,1948.9,3.31474837]
[1770950611763,0.9444079,1949.7,1948.9,3.31474837]
[1770950613189,0.9444079,1949.7,1948.9,2.032]
[1770950613391,0.94056517,1949.5,1948.1,1.28330167]
[1770950613692,0.94056517,1949.3,1948.1,3.31430167]
[1770950615291,0.94056517,1949.2,1948.1,3.31430167]
[1770950616389,0.94056517,1949.0,1948.1,3.31530167]
[1770950616591,0.94056517,1949.0,1948.1,2.032]
[1770950616889,0.94056517,1949.0,1948.1,3.31529798]
[1770950617391,0.94056517,1949.0,1948.1,2.032]
[1770950617772,0.94056517,1949.0,1947.9,1.28343344]
[1770950618178,0.94056517,1948.8,1947.9,1.28343344]
[1770950618893,0.94056517,1948.8,1947.9,2.22252072]
[1770950619396,0.94056517,1948.8,1947.9,1.28343344]
[1770950620499,0.94056517,1948.7,1947.9,1.28343344]
[1770950620869,0.94056517,1948.7,1947.9,3.31843344]
[1770950622170,0.94056517,1948.7,1947.9,1.28343344]
[1770950622500,0.94056517,1948.6,1947.9,1.28343344]
[1770950624400,0.94056517,1948.8,1947.9,1.28343344]
[1770950624702,0.94056517,1948.7,1947.9,1.28343344]
[1770950625272,0.94056517,1948.9,1948.0,0.93908728]
[1770950626173,0.94056517,1949.1,1948.0,0.93908728]
[1770950627104,0.94056517,1949.1,1948.1,2.22238895]
[1770950628875,0.94056517,1949.0,1948.1,2.22238895]
[1770950629287,0.94056517,1949.0,1947.9,6.07229399]
[1770950629288,0.94056517,1948.9,1947.9,6.07229399]
[1770950629610,0.94056517,1948.9,1947.9,5.13320671]
[1770950629805,0.94056517,1948.9,1948.0,0.93908728]
[1770950630313,0.94056517,1948.9,1947.9,5.13320671]
[1770950631106,0.94056517,1948.9,1948.2,0.001]
[1770950631281,0.94056517,1948.8,1948.2,0.001]
[1770950632813,0.002,1949.0,1948.2,0.001]
[1770950633000,0.94256517,1949.0,1948.2,0.001]
[1770950633498,0.94256517,1949.0,1948.2,1.2842358]
[1770950633905,0.94256517,1949.0,1948.3,2.03]
[1770950634990,2.22527646,1949.0,1948.3,2.03]
[1770950635192,0.94056517,1948.9,1948.3,2.03]
[1770950635591,0.94056517,1948.8,1948.3,3.31314394]
[1770950636101,0.94056517,1948.8,1948.3,1.28314394]
[1770950636823,0.94056517,1948.8,1948.2,1.28418368]
[1770950638316,1.28284716,1948.8,1948.2,1.28418368]
[1770950638621,0.94056517,1948.7,1948.2,1.28418368]
[1770950640330,0.94056517,1948.6,1948.2,0.001]
[1770950640822,1.28292554,1948.7,1948.0,3.32033287]
[1770950640823,0.95531696,1948.4,1948.0,2.037]
[1770950641037,0.95531696,1948.4,1948.0,3.32036455]
[1770950641518,0.95531696,1948.4,1948.0,2.037]
[1770950642724,0.95531696,1948.3,1948.0,2.037]
[1770950642899,1.28310754,1948.4,1948.0,0.001]
[1770950642900,0.95531696,1948.2,1948.0,0.001]
[1770950643434,1.38497962,1948.5,1948.0,2.23447706]
[1770950643728,0.002,1948.7,1948.2,0.001]
[1770950644021,1.10780539,1948.6,1948.2,0.001]
[1770950644224,0.95731696,1948.7,1948.2,1.2842358]
[1770950644392,1.10792187,1948.6,1948.2,1.2842358]
[1770950644597,0.95531696,1948.6,1948.2,1.2842358]
[1770950645922,0.95531696,1948.4,1948.2,0.001]
[1770950646123,1.10802741,1948.3,1948.2,0.001]
[1770950646829,2.06334437,1948.3,1948.2,0.001]
[1770950647803,1.10802741,1948.3,1948.2,0.001]
[1770950648003,2.34229658,1948.7,1948.2,0.001]
[1770950648307,1.10774812,1948.6,1948.2,0.001]
[1770950648512,1.10774812,1948.5,1948.2,0.001]
[1770950648706,2.34229658,1948.7,1948.2,0.001]
[1770950648935,0.95531696,1948.5,1948.2,0.001]
[1770950649114,1.10770563,1948.4,1948.2,0.001]
[1770950649312,0.95531696,1948.5,1948.2,0.001]
[1770950649513,1.10766487,1948.4,1948.2,0.001]
[1770950649711,0.95531696,1948.5,1948.2,0.001]
[1770950649917,1.10766362,1948.4,1948.2,0.001]
[1770950650226,1.10765643,1948.3,1948.2,0.001]
[1770950650433,2.06297339,1948.3,1948.2,0.001]
[1770950652422,3.34615108,1948.3,1948.0,0.001]
[1770950652742,2.06297339,1948.2,1948.0,0.001]
[1770950652931,0.95531696,1948.2,1948.0,0.001]
[1770950653107,4.43193357,1948.6,1948.0,0.001]
[1770950653306,1.10706096,1948.5,1948.0,0.001]
[1770950653534,1.10706096,1948.4,1948.0,0.001]
[1770950653845,4.10427715,1948.6,1948.0,0.001]
[1770950654026,0.002,1948.7,1948.0,0.95110997]
[1770950654204,1.1069863,1948.6,1948.0,0.95110997]
[1770950654405,0.95731696,1948.7,1948.0,0.001]
[1770950654634,1.10693756,1948.6,1948.0,0.001]
[1770950654854,0.95731696,1948.7,1948.0,0.001]
[1770950655060,2.06225278,1948.6,1948.0,0.001]
[1770950655228,0.95531696,1948.6,1948.0,0.001]
[1770950655629,0.002,1948.7,1948.0,0.95110997]
[1770950655831,1.1069107,1948.6,1948.0,0.95110997]
[1770950656062,0.002,1948.7,1948.0,0.95110997]
[1770950656386,1.10697798,1948.6,1948.1,0.001]
[1770950656537,0.002,1948.7,1948.1,0.001]
[1770950657140,0.002,1948.6,1948.1,1.28430167]
[1770950661177,0.95531696,1948.4,1947.4,0.001]
[1770950661474,0.002,1948.6,1947.6,0.95010997]
[1770950661658,1.10742231,1948.5,1947.8,0.95010997]
[1770950661860,0.95731696,1948.6,1947.8,0.95010997]
[1770950662059,1.10745816,1948.5,1947.8,0.95010997]
[1770950662258,0.95731696,1948.6,1947.8,0.95010997]
[1770950662465,1.10747936,1948.5,1947.8,0.95010997]
[1770950662665,0.95731696,1948.6,1947.8,0.95010997]
[1770950662854,1.10749245,1948.5,1947.8,0.95010997]
[1770950663056,0.95731696,1948.6,1947.8,0.95010997]
[1770950663266,1.10765748,1948.5,1947.8,0.95010997]
[1770950663468,0.95731696,1948.6,1947.8,0.95010997]
[1770950663674,0.002,1948.6,1948.0,0.95010997]
[1770950663974,0.002,1948.6,1948.1,2.044]
[1770950664273,0.002,1948.6,1948.1,2.043]
[1770950665775,0.002,1948.6,1948.2,1.2832358]
[1770950667876,0.95731696,1948.6,1948.1,3.3262618]
[1770950668072,0.95731696,1948.6,1948.1,2.043]
[1770950668776,0.95731696,1948.6,1948.1,3.3262985]
[1770950668972,0.95731696,1948.6,1948.1,1.2832985]
[1770950669774,0.002,1948.5,1948.1,1.2832985]
[1770950671452,0.90963845,1948.5,1948.0,3.32831835]
[1770950672979,0.002,1948.5,1948.0,3.32831835]
[1770950678384,0.90052539,1948.4,1948.0,3.32831835]
[1770950679857,0.90052539,1948.4,1948.0,2.045]
[1770950679858,0.90052539,1948.3,1948.0,2.045]
[1770950680063,0.90052539,1948.3,1947.9,1.28442964]
[1770950680793,0.90052539,1948.3,1947.9,0.001]
[1770950681291,1.10858335,1948.2,1947.9,0.001]
[1770950681486,0.90052539,1948.1,1947.9,0.001]
[1770950682493,0.90052539,1948.1,1948.0,0.001]
[1770950682696,2.00901981,1948.1,1948.0,0.001]
[1770950683896,1.10849442,1948.1,1948.0,0.001]
[1770950684484,0.90052539,1948.3,1948.0,0.001]
[1770950684682,1.10790879,1948.2,1948.0,0.001]
[1770950684993,0.90052539,1948.3,1948.0,0.001]
[1770950685174,1.10772466,1948.2,1948.0,0.001]
[1770950685375,0.90052539,1948.3,1948.0,0.001]
[1770950685690,1.10779965,1948.2,1948.0,0.001]
[1770950685992,0.90052539,1948.2,1948.0,0.001]
[1770950687105,0.90052539,1948.1,1948.0,0.001]
[1770950687396,2.00790386,1948.1,1948.0,0.001]
[1770950687564,0.90052539,1948.1,1948.0,0.001]
[1770950690462,0.90052539,1948.3,1948.0,0.001]
[1770950690660,1.10694578,1948.2,1948.0,0.001]
[1770950690861,0.90052539,1948.3,1948.0,0.001]
[1770950691087,1.10692352,1948.2,1948.0,0.001]
[1770950691290,0.90052539,1948.3,1948.0,0.001]
[1770950691493,1.10687916,1948.2,1948.0,0.001]
[1770950691672,0.90052539,1948.3,1948.0,0.001]
[1770950691875,1.10687916,1948.2,1948.0,0.001]
[1770950692073,0.90052539,1948.3,1948.0,0.001]
[1770950692272,1.10678512,1948.2,1948.0,0.001]
[1770950692481,0.90052539,1948.3,1948.0,0.001]